fUSD/lending_fUSD_20251201
["ID","MTS","AMOUNT","RATE_DAILY","PERIOD"]
[395314884,1764612635315,-3523.87145259,0.000167,2]
[395314885,1764612635327,-7756.53824741,0.000167,2]
[395314886,1764612635337,-450.24542705,0.000168,2]
[395314887,1764612635347,-2500.0,0.000168,2]
[395314888,1764612635711,-426.31347644,0.000168,2]
[395314889,1764612635722,-151.0,0.00016814,2]
[395314890,1764612635731,-277.0,0.00016817,2]
[395314891,1764612635741,-510.0,0.0001684,2]
[395314892,1764612635751,-426.31347642,0.0001685,2]
[395314893,1764612635760,-200.0,0.00016864,2]
[395314894,1764612635769,-500.0,0.00016899,2]
[395314895,1764612635779,-500.0,0.00016899,2]
[395314896,1764612635788,-500.0,0.00016899,2]
[395314897,1764612635798,-500.0,0.00016899,2]
[395314898,1764612635807,-500.0,0.00016899,2]
[395314899,1764612635816,-65527.13185656,0.000169,2]
[395314900,1764612635828,-203637.62864218,0.000169,2]
[395314901,1764612635839,-820.7253007,0.000169,2]
[395314906,1764612638284,-347.10462188,0.00015151,2]
[395314907,1764612638294,-739.59592857,0.000169,2]
[395314908,1764612638310,-5219.02865153,0.000169,2]
[395314909,1764612638341,-4378.33776394,0.000169,2]
[395314910,1764612638353,-829.57102,0.000169,2]
[395314911,1764612638365,-294.3711004,0.000169,2]
[395314916,1764612640339,-560.71455744,0.000169,2]
[395314917,1764612640350,-1704.13180317,0.000169,2]
[395314918,1764612640394,-1212.12124319,0.000169,2]
[395314919,1764612640556,-500.0,0.000169,2]
[395314920,1764612640568,-87215.60033092,0.000169,2]
[395314921,1764612640579,-318.01194199,0.000169,2]
[395314922,1764612640590,-1401.55,0.000169,2]
[395314923,1764612640611,-385641.47985941,0.000169,2]
[395314924,1764612640620,-600.0,0.000169,2]
[395314925,1764612640629,-426.31347642,0.000169,2]
[395314926,1764612640639,-500.0,0.00016926,2]
[395314927,1764612640648,-200.0,0.00016962,2]
[395314928,1764612640657,-500.0,0.00016962,2]
[395314929,1764612640667,-200.0,0.00016962,2]
[395314930,1764612640676,-1067.14,0.00016964,2]
[395314931,1764612640685,-500.0,0.00016973,2]
[395314932,1764612640694,-500.0,0.00016973,2]
[395314933,1764612640704,-500.0,0.00016973,2]
[395314934,1764612640715,-500.0,0.00016973,2]
[395314935,1764612640724,-500.0,0.00016973,2]
[395314936,1764612640733,-159.45765875,0.00016973,2]
[395314937,1764612640742,-500.0,0.00016973,2]
[395314938,1764612640752,-500.0,0.00016973,2]
[395314939,1764612640761,-275.71790096,0.00016973,2]
[395314940,1764612640771,-500.0,0.00016973,2]
[395314942,1764612640780,-500.0,0.00016973,2]
[395314944,1764612640790,-295.34585817,0.00016973,2]
[395314945,1764612640799,-500.0,0.00016973,2]
[395314946,1764612640809,-500.0,0.00016973,2]
[395314947,1764612640818,-500.0,0.00016973,2]
[395314948,1764612640828,-500.0,0.00016973,2]
[395314949,1764612640837,-623.00541346,0.00016973,2]
[395314950,1764612640847,-321.0,0.00016988,2]
[395314951,1764612640857,-109388.4347045,0.00016994,2]
[395314952,1764612640866,-443.3135002,0.00016994,2]
[395314953,1764612640876,-1147.5956739,0.00016994,2]
[395314954,1764612640885,-12616.4648079,0.00016994,2]
[395314955,1764612640894,-45399.4151882,0.00016994,2]
[395314956,1764612640904,-300.0,0.00016999,2]
[395314957,1764612640914,-300.0,0.00016999,2]
[395314958,1764612640923,-300.0,0.00016999,2]
[395314959,1764612640933,-300.0,0.00016999,2]
[395314960,1764612640942,-300.0,0.00016999,2]
[395314961,1764612640951,-373.77116704,0.00016999,2]
[395314962,1764612640960,-214524.31893709,0.00017,2]
[395314963,1764612641002,-500.0,0.00016973,2]
[395314964,1764612641011,-1028.70657414,0.00017,2]
[395314972,1764612643255,-349.01855081,0.00017,2]
[395314973,1764612643268,-349.15298029,0.00017,2]
[395314974,1764612643363,-500.0,0.00017,2]
[395314975,1764612643375,-666.106399,0.00017,2]
[395314976,1764612643522,-1856.47342881,0.00017,2]
[395314977,1764612643534,-7883.95283496,0.00017,2]
[395314978,1764612643546,-146109.60057617,0.00017,2]
[395314979,1764612643555,-2000.0,0.00017,2]
[395314980,1764612643564,-250.0,0.00017,2]
[395314981,1764612643573,-200.0,0.00017,2]
[395314982,1764612643582,-151.0,0.00017,2]
[395314983,1764612643592,-7000.0,0.00017,2]
[395314984,1764612643601,-938.92,0.00017,2]
[395314985,1764612643610,-166.66,0.00017019,2]
[395314986,1764612643621,-207.0,0.00017029,2]
[395314987,1764612643630,-1426.22,0.00017066,2]
[395314988,1764612643640,-5655.0,0.00017105,2]
[395314989,1764612643649,-205.04,0.00017132,2]
[395314990,1764612643658,-200.0,0.0001717,2]
[395314991,1764612643667,-252.0,0.00017203,2]
[395314992,1764612643676,-207.0,0.0001721,2]
[395314993,1764612643686,-587.0,0.00017211,2]
[395314994,1764612643695,-207.0,0.00017233,2]
[395314995,1764612643704,-1067.14,0.00017238,2]
[395314996,1764612643713,-207.0,0.00017242,2]
[395314997,1764612643723,-207.0,0.00017243,2]
[395314998,1764612643732,-252.0,0.00017266,2]
[395314999,1764612643743,-200.0,0.00017342,2]
[395315000,1764612643753,-207.0,0.00017346,2]
[395315001,1764612643763,-207.0,0.00017351,2]
[395315002,1764612643773,-250.0,0.00017361,2]
[395315003,1764612643782,-151.0,0.00017362,2]
[395315004,1764612643792,-238.62,0.00017371,2]
[395315005,1764612643801,-207.0,0.00017422,2]
[395315006,1764612643811,-600.0,0.00017448,2]
[395315007,1764612643820,-252.0,0.00017458,2]
[395315008,1764612643830,-207.0,0.00017483,2]
[395315009,1764612643839,-207.0,0.00017501,2]
[395315010,1764612643849,-207.0,0.00017508,2]
[395315011,1764612643858,-200.0,0.0001751,2]
[395315012,1764612643867,-500.0,0.0001751,2]
[395315013,1764612643876,-200.0,0.0001751,2]
[395315014,1764612643887,-738.56225587,0.00017512,2]
[395315020,1764612646804,-1121.683237,0.000168,2]
[395315021,1764612646814,-328.57774413,0.00017512,2]
[395315022,1764612646824,-151.0,0.00017512,2]
[395315023,1764612646834,-200.0,0.00017515,2]
[395315024,1764612646844,-1009.2603075,0.00017521,2]
[395315025,1764612646854,-1000.0,0.00017521,2]
[395315026,1764612646864,-1000.0,0.00017521,2]
[395315027,1764612646874,-1000.0,0.00017521,2]
[395315028,1764612646884,-1000.0,0.00017521,2]
[395315029,1764612646894,-624.66824814,0.00017521,2]
[395315030,1764612651657,-375.33175186,0.00017521,2]
[395315031,1764612651666,-163.11683196,0.00017521,2]
[395315032,1764612651677,-836.88316804,0.00017521,2]
[395315033,1764612651687,-1007.34097889,0.00017521,2]
[395315034,1764612651696,-500.0,0.00017521,2]
[395315035,1764612651705,-1000.0,0.00017521,2]
[395315036,1764612651715,-1000.0,0.00017521,2]
[395315037,1764612651724,-1000.0,0.00017521,2]
[395315038,1764612651734,-1000.0,0.00017521,2]
[395315039,1764612651744,-500.0,0.00017521,2]
[395315040,1764612651753,-166.66,0.0001753,2]
[395315041,1764612651763,-207.0,0.00017571,2]
[395315042,1764612651772,-207.0,0.00017629,2]
[395315043,1764612651781,-207.0,0.00017677,2]
[395315044,1764612651790,-2274.71959222,0.00017679,2]
[395315045,1764612651806,-616.0,0.00017679,2]
[395315046,1764612651842,-375.256147,0.00017679,2]
[395315047,1764612651858,-274.18,0.00017679,2]
[395315068,1764613787931,-7153.54700632,0.00015,2]
[395315069,1764613787954,-5346.45299368,0.00015,2]
[395315101,1764613832797,-659.1457183,0.000148,5]
[395315102,1764613832808,-1299.72764566,0.000148,5]
[395315103,1764613832819,-1298.12663604,0.000148,5]
[395315104,1764613832829,-1200.0,0.00014999,2]
[395315105,1764613832838,-195.0,0.00015,2]
[395315106,1764613832847,-2244.41282382,0.00015,2]
[395315107,1764613832858,-6103.60129478,0.00015,2]
[395315108,1764613832868,-212.0,0.00015,2]
[395315109,1764613832877,-300.0,0.00015099,2]
[395315110,1764613832887,-300.0,0.00015099,2]
[395315111,1764613832896,-195.0,0.0001513,2]
[395315112,1764613832905,-3796.804,0.00015451,2]
[395315113,1764613832914,-237.107,0.00015451,2]
[395315114,1764613832923,-584.58256243,0.00015535,2]
[395315115,1764613832932,-2522.70514279,0.00015537,2]
[395315116,1764613832943,-2986.39485721,0.00015537,2]
[395315117,1764613832953,-300.0,0.00015665,2]
[395315118,1764613832963,-1022.094349,0.00015666,2]
[395315119,1764613832973,-22740.82156081,0.00015666,2]
[395315120,1764613832985,-296.40886238,0.00015666,2]
[395315121,1764613832997,-609.77241571,0.00015666,2]
[395315122,1764613833006,-213.15673821,0.00015666,2]
[395315123,1764613833015,-426.2556445,0.00015666,2]
[395315124,1764613833027,-487.31358152,0.00015666,2]
[395315125,1764613833088,-5758.24647398,0.00015666,2]
[395315126,1764613833097,-24196.39307654,0.00015666,2]
[395315127,1764613833113,-5147.20515912,0.00015666,2]
[395315128,1764613833123,-474.78399393,0.00015666,2]
[395315129,1764613833135,-974.57167242,0.00015666,2]
[395315130,1764613833147,-3099.58681184,0.00015666,2]
[395315131,1764613833158,-1998.50742485,0.00015666,2]
[395315132,1764613833169,-3712.49726896,0.00015666,2]
[395315133,1764613833180,-3324.33770089,0.00015666,2]
[395315134,1764613833191,-4869.42107804,0.00015666,2]
[395315135,1764613833203,-776.96967196,0.00015666,2]
[395315147,1764613839504,-1039.49999999,0.00015666,2]
[395315148,1764613839518,-501.94320165,0.00015666,2]
[395315149,1764613839631,-360.42425931,0.00015666,2]
[395315150,1764613839683,-709523.8586805,0.00015666,2]
[395315151,1764613839692,-500.0,0.00015757,2]
[395315152,1764613839702,-151.0,0.00015757,2]
[395315153,1764613839711,-500.0,0.00015757,2]
[395315154,1764613839721,-151.0,0.00015757,2]
[395315155,1764613839731,-362.57091125,0.00015757,2]
[395315156,1764613839740,-151.0,0.00015757,2]
[395315157,1764613839750,-151.0,0.00015757,2]
[395315158,1764613839759,-151.0,0.00015757,2]
[395315159,1764613839769,-151.0,0.00015757,2]
[395315160,1764613839779,-151.0,0.00015757,2]
[395315161,1764613839788,-151.0,0.00015757,2]
[395315163,1764613839797,-500.0,0.00015757,2]
[395315164,1764613839806,-151.0,0.00015757,2]
[395315166,1764613839816,-151.0,0.00015757,2]
[395315168,1764613839825,-500.0,0.00015757,2]
[395315169,1764613839835,-500.0,0.00015757,2]
[395315170,1764613839844,-151.0,0.00015757,2]
[395315172,1764613839853,-500.0,0.00015757,2]
[395315173,1764613839863,-151.0,0.00015757,2]
[395315174,1764613839872,-500.0,0.00015757,2]
[395315175,1764613839881,-151.0,0.00015757,2]
[395315176,1764613839890,-500.0,0.00015757,2]
[395315177,1764613839899,-151.0,0.00015757,2]
[395315178,1764613839909,-500.0,0.00015757,2]
[395315179,1764613839918,-151.0,0.00015757,2]
[395315180,1764613839928,-500.0,0.00015757,2]
[395315181,1764613839938,-500.0,0.00015757,2]
[395315182,1764613839947,-500.0,0.00015757,2]
[395315183,1764613839958,-500.0,0.00015757,2]
[395315184,1764613839968,-500.0,0.00015757,2]
[395315185,1764613839979,-500.0,0.00015757,2]
[395315186,1764613839991,-151.0,0.00015757,2]
[395315191,1764613840208,-500.0,0.00015757,2]
[395315192,1764613840219,-151.0,0.00015757,2]
[395315193,1764613840230,-500.0,0.00015757,2]
[395315194,1764613840240,-151.0,0.00015757,2]
[395315195,1764613840250,-151.0,0.00015757,2]
[395315196,1764613840259,-200.0,0.00015757,2]
[395315197,1764613840270,-151.0,0.00015757,2]
[395315198,1764613840282,-151.0,0.00015757,2]
[395315199,1764613840291,-158.27356486,0.00015757,2]
[395315200,1764613840300,-200.0,0.00015757,2]
[395315201,1764613840310,-200.0,0.00015757,2]
[395315202,1764613840319,-150.0,0.00015757,2]
[395315203,1764613840329,-151.92540351,0.00015757,2]
[395315204,1764613840338,-252.7415751,0.00015757,2]
[395315205,1764613840347,-500.0,0.00015765,2]
[395315206,1764613840357,-500.0,0.00015765,2]
[395315207,1764613840366,-150.0,0.00015765,2]
[395315208,1764613840376,-150.0,0.00015765,2]
[395315209,1764613840386,-500.0,0.00015765,2]
[395315210,1764613840395,-150.0,0.00015765,2]
[395315211,1764613840404,-500.0,0.00015765,2]
[395315212,1764613840413,-500.0,0.00015766,2]
[395315213,1764613840422,-413.92477484,0.00015766,2]
[395315214,1764613840431,-600.0,0.00015766,2]
[395315215,1764613840441,-150.99,0.00015766,2]
[395315216,1764613840450,-150.0,0.00015894,2]
[395315217,1764613840459,-500.0,0.00015902,2]
[395315218,1764613840469,-500.0,0.00015902,2]
[395315219,1764613840478,-150.0,0.00015902,2]
[395315220,1764613840488,-500.0,0.00015902,2]
[395315221,1764613840498,-500.0,0.00015902,2]
[395315222,1764613840510,-552.29203276,0.00016,2]
[395315223,1764613840519,-23669.11750587,0.00016,2]
[395315224,1764613840529,-289900.56260825,0.00016,4]
[395315225,1764613840539,-155.5403879,0.00016031,2]
[395315226,1764613840548,-500.0,0.00016039,2]
[395315227,1764613840558,-303.47951242,0.00016039,2]
[395315228,1764613840567,-283.28636591,0.00016039,2]
[395315229,1764613840577,-550.88958633,0.00016039,2]
[395315230,1764613840586,-588.42389911,0.00016039,2]
[395315231,1764613840595,-500.0,0.00016176,2]
[395315232,1764613840604,-1292.2,0.00016236,2]
[395315233,1764613840613,-1453.79124489,0.0001629,2]
[395315234,1764613840623,-87314.39848645,0.000163,2]
[395315235,1764613840632,-9999.99,0.00016305,2]
[395315236,1764613840641,-500.0,0.00016305,2]
[395315237,1764613840651,-200.0,0.00016305,2]
[395315238,1764613840660,-227.93158607,0.00016305,2]
[395315239,1764613840669,-500.0,0.00016305,2]
[395315240,1764613840678,-500.0,0.00016305,2]
[395315241,1764613840687,-500.0,0.00016305,2]
[395315242,1764613840696,-1119.0,0.00016305,2]
[395315243,1764613840706,-440.0,0.00016305,2]
[395315244,1764613840715,-150.0,0.00016305,2]
[395315245,1764613840724,-500.0,0.00016305,2]
[395315246,1764613840734,-500.0,0.00016305,2]
[395315247,1764613840743,-500.0,0.00016305,2]
[395315248,1764613840752,-500.0,0.00016305,2]
[395315249,1764613840761,-500.0,0.00016305,2]
[395315250,1764613840770,-500.0,0.00016305,2]
[395315251,1764613840779,-150.0,0.00016305,2]
[395315252,1764613840789,-225.27423133,0.00016305,2]
[395315253,1764613840798,-500.0,0.00016305,2]
[395315254,1764613840807,-500.0,0.00016305,2]
[395315255,1764613840816,-500.0,0.00016313,2]
[395315256,1764613840825,-600.0,0.00016314,2]
[395315257,1764613840835,-1000.0,0.0001632,2]
[395315258,1764613840844,-250.0,0.0001632,2]
[395315259,1764613840853,-800.0,0.00016438,2]
[395315260,1764613840863,-500.0,0.00016442,2]
[395315261,1764613840872,-629.11434377,0.00016442,2]
[395315262,1764613840881,-500.0,0.00016442,2]
[395315263,1764613840891,-1119.0,0.00016442,2]
[395315264,1764613840900,-440.0,0.00016442,2]
[395315265,1764613840910,-150.0,0.00016442,2]
[395315266,1764613840919,-500.0,0.00016442,2]
[395315267,1764613840928,-500.0,0.00016442,2]
[395315268,1764613840938,-500.0,0.00016442,2]
[395315269,1764613840948,-500.0,0.00016442,2]
[395315270,1764613840958,-500.0,0.00016442,2]
[395315271,1764613840968,-500.0,0.00016442,2]
[395315272,1764613840977,-500.0,0.00016442,2]
[395315273,1764613840987,-500.0,0.00016442,2]
[395315274,1764613840996,-500.0,0.0001645,2]
[395315275,1764613841006,-2500.0,0.00016499,2]
[395315276,1764613841015,-2500.0,0.00016499,2]
[395315277,1764613841024,-2500.0,0.00016499,2]
[395315278,1764613841034,-2500.0,0.00016499,2]
[395315279,1764613841043,-795.73324201,0.00016499,2]
[395315280,1764613841053,-150.0,0.00016499,3]
[395315281,1764613841062,-286.46715625,0.00016499,3]
[395315282,1764613841072,-5000.0,0.00016499,3]
[395315283,1764613841097,-179.13404474,0.00016499,3]
[395315284,1764613841107,-195.0,0.00016499,2]
[395315285,1764613841116,-1680.0,0.00016499,2]
[395315286,1764613841125,-420.0,0.00016523,2]
[395315287,1764613841135,-446.65279503,0.00016579,2]
[395315288,1764613841144,-500.0,0.00016579,2]
[395315289,1764613841153,-1119.0,0.00016579,2]
[395315290,1764613841162,-440.0,0.00016579,2]
[395315291,1764613841171,-288.42922167,0.00016579,2]
[395315292,1764613841180,-500.0,0.00016579,2]
[395315293,1764613841190,-500.0,0.00016579,2]
[395315294,1764613841199,-520.28810735,0.00016579,2]
[395315295,1764613841208,-500.0,0.00016579,2]
[395315296,1764613841218,-500.0,0.00016579,2]
[395315297,1764613841227,-500.0,0.00016579,2]
[395315298,1764613841238,-500.0,0.00016579,2]
[395315299,1764613841247,-500.0,0.00016579,2]
[395315300,1764613841257,-500.0,0.00016587,2]
[395315301,1764613841268,-1852.42,0.00016624,2]
[395315302,1764613841278,-176.07,0.00016712,2]
[395315303,1764613841288,-500.0,0.00016716,2]
[395315304,1764613841297,-1119.0,0.00016716,2]
[395315305,1764613841307,-440.0,0.00016716,2]
[395315306,1764613841316,-500.0,0.00016716,2]
[395315307,1764613841326,-500.0,0.00016716,2]
[395315308,1764613841335,-500.0,0.00016716,2]
[395315309,1764613841345,-500.0,0.00016716,2]
[395315310,1764613841355,-500.0,0.00016716,2]
[395315311,1764613841364,-500.0,0.00016716,2]
[395315312,1764613841374,-500.0,0.00016716,2]
[395315313,1764613841383,-500.0,0.00016724,2]
[395315314,1764613841393,-5081.92,0.00016776,2]
[395315315,1764613841403,-226.0,0.00016793,2]
[395315316,1764613841412,-1000.0,0.000168,2]
[395315317,1764613841421,-625.55,0.00016828,2]
[395315318,1764613841431,-999.0,0.00016852,3]
[395315319,1764613841440,-500.0,0.00016853,2]
[395315320,1764613841449,-200.0,0.00016853,2]
[395315321,1764613841459,-500.0,0.00016853,2]
[395315322,1764613841468,-1119.0,0.00016853,2]
[395315323,1764613841478,-440.0,0.00016853,2]
[395315324,1764613841487,-500.0,0.00016853,2]
[395315325,1764613841497,-335.76083111,0.00016853,2]
[395315326,1764613841510,-500.0,0.00016853,2]
[395315327,1764613841519,-225.37953766,0.00016853,2]
[395315328,1764613841528,-500.0,0.00016853,2]
[395315329,1764613841538,-500.0,0.00016853,2]
[395315330,1764613841548,-500.0,0.00016853,2]
[395315331,1764613841559,-500.0,0.00016861,2]
[395315332,1764613841568,-600.0,0.00016862,2]
[395315333,1764613841579,-216.06157058,0.000169,2]
[395315334,1764613841589,-425.5347,0.000169,2]
[395315335,1764613841599,-213.15673821,0.000169,2]
[395315336,1764613841608,-182.42815085,0.000169,2]
[395315337,1764613841618,-413.11912254,0.00016973,2]
[395315338,1764613841628,-500.0,0.00016973,2]
[395315339,1764613841637,-215.57589564,0.00016973,2]
[395315340,1764613841647,-500.0,0.00016973,2]
[395315341,1764613841657,-500.0,0.00016973,2]
[395315342,1764613841666,-500.48889025,0.00016973,2]
[395315343,1764613841676,-151.3273627,0.00016973,2]
[395315344,1764613841685,-500.0,0.00016973,2]
[395315345,1764613841695,-500.0,0.00016973,2]
[395315346,1764613841705,-500.0,0.00016973,2]
[395315347,1764613841714,-500.0,0.00016973,2]
[395315348,1764613841724,-159.45765875,0.00016973,2]
[395315349,1764613841733,-500.0,0.00016973,2]
[395315350,1764613841742,-500.0,0.00016973,2]
[395315351,1764613841752,-275.71790096,0.00016973,2]
[395315352,1764613841762,-500.0,0.00016973,2]
[395315353,1764613841771,-500.0,0.00016973,2]
[395315354,1764613841781,-500.0,0.00016973,2]
[395315355,1764613841791,-500.0,0.00016973,2]
[395315356,1764613841800,-162.47379321,0.00016973,2]
[395315357,1764613841810,-500.0,0.00016973,2]
[395315358,1764613841819,-500.0,0.00016973,2]
[395315359,1764613841829,-500.0,0.00016973,2]
[395315360,1764613841838,-500.0,0.00016973,2]
[395315361,1764613841847,-500.0,0.00016973,2]
[395315362,1764613841859,-500.0,0.00016973,2]
[395315363,1764613841868,-1067.14,0.00016973,2]
[395315364,1764613841877,-1716.0,0.00016986,2]
[395315365,1764613841886,-15940.0,0.00016986,2]
[395315366,1764613841895,-500.0,0.0001699,2]
[395315367,1764613841905,-1119.0,0.0001699,2]
[395315368,1764613841914,-440.0,0.0001699,2]
[395315369,1764613841923,-500.0,0.0001699,2]
[395315370,1764613841933,-500.0,0.0001699,2]
[395315371,1764613841943,-500.0,0.0001699,2]
[395315372,1764613841952,-152.0,0.0001699,2]
[395315373,1764613841961,-500.0,0.0001699,2]
[395315374,1764613841971,-1453.79124489,0.0001699,2]
[395315375,1764613841980,-500.0,0.00016998,2]
[395315376,1764613841990,-300.0,0.00016999,2]
[395315377,1764613841999,-300.0,0.00016999,2]
[395315378,1764613842009,-300.0,0.00016999,2]
[395315379,1764613842018,-300.0,0.00016999,2]
[395315380,1764613842028,-300.0,0.00016999,2]
[395315381,1764613842038,-300.0,0.00016999,2]
[395315382,1764613842048,-250.0,0.00017,2]
[395315383,1764613842058,-2214070.48926896,0.00017,2]
[395315384,1764613842067,-2330545.59763274,0.00017,2]
[395315385,1764613842081,-151.0,0.00017,2]
[395315386,1764613842091,-151.0,0.00017,2]
[395315387,1764613842100,-151.0,0.00017,2]
[395315388,1764613842109,-151.0,0.00017,2]
[395315389,1764613842119,-151.0,0.00017,2]
[395315390,1764613842128,-151.0,0.00017,2]
[395315391,1764613842137,-292.747024,0.00017,2]
[395315392,1764613842147,-544.87415152,0.00017033,2]
[395315393,1764613842156,-500.0,0.00017041,2]
[395315394,1764613842166,-500.0,0.00017127,2]
[395315395,1764613842175,-1119.0,0.00017127,2]
[395315396,1764613842185,-440.0,0.00017127,2]
[395315397,1764613842194,-500.0,0.00017127,2]
[395315398,1764613842204,-150.0,0.00017127,2]
[395315399,1764613842214,-500.0,0.00017127,2]
[395315400,1764613842223,-440.0,0.00017127,2]
[395315402,1764613842232,-500.0,0.00017135,2]
[395315404,1764613842242,-1067.14,0.00017247,2]
[395315406,1764613842251,-500.0,0.00017264,2]
[395315407,1764613842261,-1119.0,0.00017264,2]
[395315408,1764613842271,-440.0,0.00017264,2]
[395315409,1764613842280,-150.0,0.00017264,2]
[395315410,1764613842290,-350.0,0.00017264,2]
[395315411,1764613842300,-353.73471508,0.00017272,2]
[395315412,1764613842311,-207.0,0.0001732,2]
[395315413,1764613842320,-200.0,0.00017401,2]
[395315414,1764613842330,-500.0,0.00017401,2]
[395315415,1764613842339,-1119.0,0.00017401,2]
[395315416,1764613842349,-440.0,0.00017401,2]
[395315417,1764613842359,-600.0,0.0001741,2]
[395315418,1764613842368,-1453.79124489,0.00017464,2]
[395315419,1764613842379,-82041.3260284,0.00017474,2]
[395315420,1764613842388,-1065.0281103,0.00017474,2]
[395315421,1764613842398,-346699.8379184,0.00017474,2]
[395315422,1764613842407,-207.0,0.00017515,2]
[395315423,1764613842417,-1000.0,0.00017521,2]
[395315424,1764613842426,-1000.0,0.00017521,2]
[395315425,1764613842436,-866.67180907,0.00017521,2]
[395315426,1764613842445,-501.10650118,0.00017521,2]
[395315427,1764613842455,-371.11170021,0.00017521,2]
[395315428,1764613842465,-1000.0,0.00017521,2]
[395315429,1764613842475,-174.58747683,0.00017521,2]
[395315430,1764613842484,-1000.0,0.00017521,2]
[395315431,1764613842495,-1000.0,0.00017521,2]
[395315432,1764613842511,-1000.0,0.00017521,2]
[395315433,1764613842520,-1000.0,0.00017521,2]
[395315434,1764613842530,-1000.0,0.00017521,2]
[395315435,1764613842541,-1000.0,0.00017521,2]
[395315436,1764613842551,-1000.0,0.00017521,2]
[395315437,1764613842561,-1000.0,0.00017521,2]
[395315438,1764613842571,-1067.14,0.00017521,2]
[395315439,1764613842584,-500.0,0.00017538,2]
[395315440,1764613842594,-1119.0,0.00017538,2]
[395315441,1764613842604,-440.0,0.00017538,2]
[395315442,1764613842615,-207.0,0.00017566,2]
[395315443,1764613842624,-4548.7588,0.00017662,2]
[395315444,1764613842634,-500.0,0.00017675,2]
[395315445,1764613842644,-1119.0,0.00017675,2]
[395315446,1764613842654,-440.0,0.00017675,2]
[395315447,1764613842664,-2114.84426078,0.00017679,2]
[395315448,1764613842674,-3094.30864244,0.00017679,2]
[395315449,1764613842684,-1000.0,0.00017679,2]
[395315450,1764613842693,-713.59779201,0.00017679,2]
[395315451,1764613842702,-7000.0,0.00017679,2]
[395315452,1764613842711,-252.0,0.0001774,2]
[395315453,1764613842721,-300.0,0.00017772,2]
[395315454,1764613842731,-300.0,0.00017772,2]
[395315455,1764613842740,-300.0,0.00017772,2]
[395315456,1764613842749,-300.0,0.00017772,2]
[395315457,1764613842758,-500.0,0.00017773,2]
[395315458,1764613842769,-500.0,0.00017773,2]
[395315460,1764613842778,-502.39177324,0.00017773,2]
[395315461,1764613842788,-500.0,0.00017773,2]
[395315462,1764613842797,-500.0,0.00017773,2]
[395315463,1764613842807,-500.0,0.00017773,2]
[395315464,1764613842816,-500.0,0.00017773,2]
[395315466,1764613842825,-500.0,0.00017773,2]
[395315467,1764613842835,-500.0,0.00017773,2]
[395315468,1764613842844,-500.0,0.00017773,2]
[395315469,1764613842853,-183.87070732,0.00017773,2]
[395315470,1764613842863,-500.0,0.00017773,2]
[395315471,1764613842872,-500.0,0.00017773,2]
[395315472,1764613842881,-500.0,0.00017773,2]
[395315473,1764613842890,-500.0,0.00017773,2]
[395315474,1764613842900,-500.0,0.00017773,2]
[395315475,1764613842909,-500.0,0.00017773,2]
[395315476,1764613842919,-500.0,0.00017773,2]
[395315477,1764613842928,-500.0,0.00017773,2]
[395315478,1764613842937,-329.72446081,0.00017773,2]
[395315479,1764613842947,-160.09973475,0.00017773,2]
[395315480,1764613842956,-500.0,0.00017773,2]